bitfinex/quotes_ETHUSD_20230111
["timestamp","ask_amount","ask_price","bid_price","bid_amount"]
[1673411799145,48.20795327,1330.2,1330.1,0.07647852]
[1673411799355,45.95679829,1330.2,1330.1,0.07647852]
[1673411799560,48.20795327,1330.2,1330.1,0.07647852]
[1673411801473,45.95679829,1330.2,1330.1,0.07647852]
[1673411801888,44.25679829,1330.2,1330.1,0.07647852]
[1673411805037,45.3807651,1330.2,1330.1,0.07647852]
[1673411805261,44.25679829,1330.2,1330.1,0.07647852]
[1673411805604,45.38074437,1330.2,1330.1,0.07647852]
[1673411805764,45.38066276,1330.2,1330.1,0.07647852]
[1673411805975,42.88066276,1330.2,1330.1,0.07647852]
[1673411806810,39.49934193,1330.2,1330.1,0.07647852]
[1673411807045,33.66800276,1330.2,1330.1,0.07647852]
[1673411807368,36.49934193,1330.2,1330.1,0.07647852]
[1673411809332,38.18566276,1330.2,1330.1,0.07647852]
[1673411812520,30.66800276,1330.2,1330.1,0.07647852]
[1673411812739,30.58420785,1330.2,1330.1,0.07647852]
[1673411813377,28.89788702,1330.2,1330.1,0.07647852]
[1673411816122,30.02020785,1330.2,1330.1,0.07647852]
[1673411816289,28.33388702,1330.2,1330.1,0.07647852]
[1673411820421,30.02020785,1330.2,1330.1,0.07647852]
[1673411820743,28.33388702,1330.2,1330.1,0.07647852]
[1673411820956,30.02020785,1330.2,1330.1,0.07647852]
[1673411821166,37.53786785,1330.2,1330.1,0.07647852]
[1673411823555,36.41400338,1330.2,1330.1,0.07647852]
[1673411825559,39.79186098,1330.2,1330.1,0.07261306]
[1673411827860,41.48986098,1330.2,1330.1,0.07261306]
[1673411828804,33.97220098,1330.2,1330.1,0.07261306]
[1673411829448,38.67683753,1330.2,1330.1,0.07261306]
[1673411831750,41.48986098,1330.2,1330.1,0.07261306]
[1673411831955,38.67683753,1330.2,1330.1,0.07261306]
[1673411832683,31.15917753,1330.2,1330.1,0.07261306]
[1673411832893,32.8482857,1330.2,1330.1,0.07261306]
[1673411833098,32.8482801,1330.2,1330.1,0.07261306]
[1673411833308,31.15917753,1330.2,1330.1,0.07261306]
[1673411834196,41.48986098,1330.2,1330.1,0.07261306]
[1673411834407,31.15917753,1330.2,1330.1,0.07261306]
[1673411836230,38.67683753,1330.2,1330.1,0.07261306]
[1673411836447,41.48986098,1330.2,1330.1,0.07261306]
[1673411842125,41.48231069,1330.2,1330.1,0.07261306]
[1673411842319,38.10668255,1330.2,1330.1,0.07261306]
[1673411844092,45.79863864,1330.2,1330.1,0.07261306]
[1673411845446,53.78532385,1330.2,1330.1,3.06e-06]
[1673411845802,1.34599409,1330.0,1329.9,0.08802122]
[1673411845956,30.49555229,1330.0,1329.9,0.08802122]
[1673411846168,30.56049315,1330.0,1329.9,0.08802122]
[1673411847437,32.80882872,1330.0,1329.9,0.08802122]
[1673411849808,30.04643993,1330.0,1329.9,0.08802122]
[1673411851434,31.73145913,1330.0,1329.9,0.08802122]
[1673411851658,31.68145913,1330.0,1329.9,0.08802122]
[1673411855768,35.80882872,1330.0,1329.9,0.08802122]
[1673411856688,37.49605312,1330.0,1329.9,0.08802122]
[1673411857733,38.06015312,1330.0,1329.9,0.08802122]
[1673411859404,36.37115312,1330.0,1329.9,0.08802122]
[1673411863388,43.88994312,1330.0,1329.8,0.09828593]
[1673411863574,5.88122508,1329.9,1329.8,0.09828593]
[1673411863788,33.31136276,1329.9,1329.8,0.09828593]
[1673411864180,33.87369765,1329.9,1329.8,0.09828593]
[1673411864809,35.55684644,1329.9,1329.8,0.09828593]
[1673411866203,39.35450708,1329.9,1329.8,5.93e-06]
[1673411866416,44.05440694,1329.9,1329.8,5.93e-06]
[1673411866646,44.05440694,1329.9,1329.8,0.65574786]
[1673411868549,29.91579217,1329.9,1329.8,0.65574786]
[1673411868853,14.87707217,1329.9,1329.8,0.65574786]
[1673411869184,37.43515217,1329.9,1329.8,0.65574786]
[1673411869342,29.91579217,1329.9,1329.8,0.65574786]
[1673411869987,37.43515217,1329.9,1329.8,0.65574786]
[1673411870745,35.75210352,1329.9,1329.8,0.65574786]
[1673411871066,37.43525752,1329.9,1329.8,0.65574786]
[1673411871287,36.31318633,1329.9,1329.8,0.65574786]
[1673411871585,37.43534859,1329.9,1329.8,0.65574786]
[1673411871759,36.31318633,1329.9,1329.8,0.65574786]
[1673411873474,38.5587463,1329.9,1329.8,0.65574786]
[1673411874268,36.8587463,1329.9,1329.8,0.65574786]
[1673411875367,35.17569765,1329.9,1329.8,0.65574786]
[1673411875682,36.85975482,1329.9,1329.8,0.65574786]
[1673411876522,36.85975482,1329.9,1329.8,0.65574193]
[1673411876840,35.17569765,1329.9,1329.8,0.65574193]
[1673411877054,40.25193638,1329.9,1329.8,0.65574193]
[1673411877358,49.32364711,1329.9,1329.8,1.93e-06]
[1673411877566,41.80428711,1329.9,1329.8,1.93e-06]
[1673411878152,41.80428711,1329.9,1329.6,0.17367528]
[1673411878153,1.3459905,1329.7,1329.6,0.17367528]
[1673411878360,24.64497134,1329.7,1329.6,0.17367528]
[1673411878635,39.7508922,1329.7,1329.6,0.17367528]
[1673411878821,42.7508922,1329.7,1329.6,0.17367528]
[1673411879423,42.7508922,1329.7,1329.6,5.28e-06]
[1673411879743,41.06680878,1329.7,1329.6,5.28e-06]
[1673411880882,42.75112754,1329.7,1329.6,5.28e-06]
[1673411881091,42.75112984,1329.7,1329.6,5.28e-06]
[1673411881345,41.06680878,1329.7,1329.6,5.28e-06]
[1673411882150,43.87345674,1329.7,1329.6,5.28e-06]
[1673411882509,41.06680878,1329.7,1329.6,5.28e-06]
[1673411883044,41.62813837,1329.7,1329.6,5.28e-06]
[1673411883713,43.87507038,1329.7,1329.6,5.28e-06]
[1673411884246,42.38046632,1329.7,1329.6,5.28e-06]
[1673411884461,46.17812696,1329.7,1329.6,5.28e-06]
[1673411885250,48.42431726,1329.7,1329.6,5.28e-06]
[1673411885399,46.17812696,1329.7,1329.6,5.28e-06]
[1673411886066,57.31802696,1329.7,1329.6,5.28e-06]
[1673411886678,53.52036632,1329.7,1329.6,5.28e-06]
[1673411886888,42.99359159,1329.7,1329.6,5.28e-06]
[1673411887135,27.9368634,1329.7,1329.6,5.28e-06]
[1673411887346,25.4368634,1329.7,1329.6,5.28e-06]
[1673411887501,24.31346145,1329.7,1329.6,5.28e-06]
[1673411888551,25.43689164,1329.7,1329.6,5.28e-06]
[1673411889861,24.31346145,1329.7,1329.6,5.28e-06]
[1673411890073,25.43692875,1329.7,1329.6,5.28e-06]
[1673411890442,24.31346145,1329.7,1329.6,5.28e-06]
[1673411891944,31.14971169,1329.7,1329.6,5.28e-06]
[1673411892709,28.90302051,1329.7,1329.6,5.28e-06]
[1673411893020,31.14971169,1329.7,1329.6,5.28e-06]
[1673411893229,28.90302051,1329.7,1329.6,5.28e-06]
[1673411893548,31.14971169,1329.7,1329.6,5.28e-06]
[1673411897062,29.4646516,1329.7,1329.6,5.28e-06]
[1673411900038,36.9851416,1329.7,1329.6,5.28e-06]
[1673411900665,38.67099159,1329.7,1329.6,5.28e-06]
[1673411901026,38.67099159,1329.7,1329.4,0.16162818]
[1673411901027,2.50310551,1329.6,1329.4,0.16162818]
[1673411901340,11.14823727,1329.6,1329.4,0.16162818]
[1673411901509,11.21317813,1329.6,1329.4,0.16162818]
[1673411901747,18.73422813,1329.6,1329.4,0.16162818]
[1673411902226,8.71299813,1329.6,1329.4,0.16162818]
[1673411902578,16.23404813,1329.6,1329.4,0.16162818]
[1673411903424,23.75509813,1329.6,1329.4,0.16162818]
[1673411904431,16.23404813,1329.6,1329.4,0.16162818]
[1673411904645,1.19194813,1329.6,1329.4,0.16162818]
[1673411904965,1.12700727,1329.6,1329.4,0.16162818]
[1673411905189,8.64825727,1329.6,1329.4,0.16162818]
[1673411905399,16.23444813,1329.6,1329.4,0.16162818]
[1673411906119,16.23134262,1329.6,1329.4,0.16162818]
[1673411907163,15.10744086,1329.6,1329.4,0.16162818]
[1673411907738,7.58619086,1329.6,1329.4,0.16162818]
[1673411908477,7.58599086,1329.6,1329.4,0.16162818]
[1673411908841,15.10704086,1329.6,1329.4,0.16162818]
[1673411909307,15.10704086,1329.6,1329.4,2.97294519]
[1673411909308,0.06494086,1329.6,1329.4,2.97294519]
[1673411909481,1.12390176,1329.7,1329.5,1.86606631]
[1673411909698,8.64447176,1329.7,1329.5,1.86606631]
[1673411909907,8.71047176,1329.7,1329.5,1.86606631]
[1673411910945,16.23104176,1329.7,1329.5,1.86606631]
[1673411911368,8.71047176,1329.7,1329.5,1.86606631]
[1673411911782,8.71047176,1329.7,1329.5,6.45530359]
[1673411911783,1.75410176,1329.7,1329.5,6.45530359]
[1673411911994,12.44845175,1329.8,1329.6,1.86606631]
[1673411912206,11.88435175,1329.8,1329.6,1.86606631]
[1673411913000,1.12390176,1329.7,1329.5,0.066]
[1673411913166,1.12390176,1329.7,1329.5,1.86599546]
[1673411913615,8.64443176,1329.7,1329.5,1.86599546]
[1673411913807,8.71043176,1329.7,1329.5,1.86599546]
[1673411914226,8.71043176,1329.7,1329.5,2.98931247]
[1673411914940,8.71043176,1329.7,1329.5,1.12331701]
[1673411915186,7.58653,1329.7,1329.5,2.98928124]
[1673411915994,0.066,1329.7,1329.5,2.98928124]
[1673411916220,7.52051,1329.7,1329.5,2.98928124]
[1673411916428,7.58651,1329.7,1329.5,2.98928124]
[1673411916870,7.58651,1329.7,1329.4,20.07070308]
[1673411916871,10.39626175,1329.7,1329.4,20.07070308]
[1673411917042,10.39626175,1329.7,1329.4,23.86836372]
[1673411917261,10.39626175,1329.7,1329.4,16.34669372]
[1673411918303,12.89626175,1329.7,1329.4,16.34669372]
[1673411918516,12.89626175,1329.7,1329.4,15.22337671]
[1673411918517,10.39626175,1329.7,1329.4,15.22337671]
[1673411919463,10.39626175,1329.7,1329.4,16.34669372]
[1673411919717,1.12390176,1329.6,1329.4,15.22337671]
[1673411920037,11.77235999,1329.7,1329.4,15.22337671]
[1673411920038,8.71041176,1329.7,1329.5,1.86607787]
[1673411920829,10.39626175,1329.7,1329.4,16.34948237]
[1673411921080,17.91703175,1329.7,1329.5,1.86606521]
[1673411921816,16.23118176,1329.7,1329.5,1.86606521]
[1673411922563,1.18990176,1329.7,1329.5,1.86606521]
[1673411922876,1.12390176,1329.7,1329.5,1.86606521]
[1673411924085,8.6409469,1329.7,1329.5,1.86606521]
[1673411924296,1.1862569,1329.7,1329.5,1.86606521]
[1673411924553,1.1202569,1329.7,1329.5,1.86606521]
[1673411926434,8.6407869,1329.7,1329.5,1.86606521]
[1673411926607,8.7067869,1329.7,1329.5,1.86606521]
[1673411927679,16.2273169,1329.7,1329.5,1.86606521]
[1673411928025,1.1862569,1329.7,1329.5,2.98938222]
[1673411928351,1.1202569,1329.7,1329.5,2.98938222]
[1673411929076,1.1202569,1329.7,1329.5,1.86606521]
[1673411929240,1.1202569,1329.7,1329.4,31.39055985]
[1673411929445,1.1202569,1329.7,1329.5,1.86597341]
[1673411930127,9.27193999,1329.8,1329.6,3.79766064]
[1673411930283,1.75184999,1329.8,1329.6,3.79766064]
[1673411930494,1.75184999,1329.9,1329.7,7.35545766]
[1673411930704,11.50079118,1330.0,1329.8,3.79766064]
[1673411930705,10.44184999,1330.0,1329.8,3.79766064]
[1673411930915,10.44184999,1330.0,1329.8,11.31743064]
[1673411931174,1.75184999,1330.0,1329.8,11.38343064]
[1673411931393,1.68584999,1330.0,1329.8,11.38343064]
[1673411931542,4.56254117,1330.1,1329.8,11.38343064]
[1673411931752,2.24984999,1330.1,1329.8,32.71250792]
[1673411931965,2.24984999,1330.1,1329.9,5.48966064]
[1673411931966,1.68584999,1330.1,1329.9,5.48966064]
[1673411932225,1.68584999,1330.1,1329.9,13.07472064]
[1673411933031,22.70629117,1330.2,1329.9,13.07472064]
[1673411933240,4.18584999,1330.1,1329.9,3.86366064]
[1673411933452,26.74068999,1330.1,1329.8,8.1556]
[1673411933662,4.25184999,1330.1,1329.8,17.77311064]
[1673411933875,4.18584999,1330.1,1329.8,17.77311064]
[1673411934126,1.1232239,1330.0,1329.8,17.77311064]
[1673411934950,1.1232239,1330.0,1329.8,11.38351064]
[1673411935171,20.41217389,1330.1,1329.8,3.86366064]
[1673411935375,20.41217389,1330.1,1329.8,3.79766064]
[1673411935563,1.1232239,1330.0,1329.8,3.79766064]
[1673411944179,2.80907389,1330.0,1329.8,3.79766064]
[1673411944394,1.1232239,1330.0,1329.8,11.31753064]
[1673411944585,1.1232239,1330.0,1329.8,11.38353064]
[1673411946947,2.87507389,1330.1,1329.8,11.38353064]
[1673411947106,2.87507389,1330.1,1329.8,18.90345064]
[1673411947107,1.1232239,1330.1,1329.8,18.90345064]
[1673411947526,2.80907389,1330.1,1329.8,18.90345064]
[1673411948731,1.1232239,1330.1,1329.8,18.90345064]
[1673411948946,1.1232239,1330.1,1329.8,18.90062624]
[1673411950013,2.80907389,1330.1,1329.8,18.90062624]
[1673411950401,1.1232239,1330.0,1329.8,11.38070624]
[1673411951927,10.39334389,1330.1,1329.8,11.38070624]
[1673411952068,15.50996719,1330.1,1329.8,3.86083624]
[1673411952293,15.50996719,1330.1,1329.8,3.79483624]
[1673411952959,1.1232239,1330.0,1329.8,3.79483624]
[1673411957242,2.80907389,1330.0,1329.8,3.79483624]
[1673411957749,1.1232239,1330.0,1329.8,3.79483624]
[1673411959118,2.80907389,1330.0,1329.8,3.79483624]
[1673411959327,2.80907389,1330.0,1329.7,0.066]
[1673411959328,1.1232239,1329.9,1329.7,0.066]
[1673411959576,2.8242239,1329.9,1329.6,12.6031]
[1673411959795,17.8633339,1329.9,1329.6,16.40076064]
[1673411959999,17.9293339,1329.9,1329.6,16.40076064]
[1673411960211,17.9293339,1329.9,1329.6,3.86366064]
[1673411960428,17.9293339,1329.9,1329.6,3.79766064]
[1673411961691,10.4096139,1329.9,1329.6,3.79766064]
[1673411961897,8.7086139,1329.9,1329.6,3.79766064]
[1673411962077,16.2283339,1329.9,1329.6,3.79766064]
[1673411963059,16.2283339,1329.9,1329.6,4.92097765]
[1673411963427,25.43390389,1329.9,1329.6,3.79766064]
[1673411965238,25.43390389,1329.9,1329.6,4.92097765]
[1673411967048,25.43390389,1329.9,1329.7,1.86580986]
[1673411967259,31.84107274,1329.9,1329.7,1.86580986]
[1673411969001,24.32135274,1329.9,1329.7,1.86580986]
[1673411973730,1.1232239,1329.8,1329.7,1.86580986]
[1673411975040,25.43397389,1329.9,1329.7,1.86580986]
[1673411975219,1.1232239,1329.8,1329.7,1.86580986]
[1673411975621,8.6431439,1329.8,1329.7,1.86580986]
[1673411975872,7.58592,1329.8,1329.7,1.86580986]
[1673411976046,8.7091439,1329.8,1329.7,1.86580986]
[1673411976261,7.58592,1329.8,1329.7,1.86580986]
[1673411976616,8.7091439,1329.8,1329.7,1.86580986]
[1673411978485,0.066,1329.8,1329.7,1.86580986]
[1673411978737,25.43403389,1329.9,1329.7,1.86580986]
[1673411978894,30.83933674,1329.9,1329.7,1.86580986]
[1673411979657,3.6232239,1329.8,1329.7,1.86580986]
[1673411980277,11.1431439,1329.8,1329.7,1.86580986]
[1673411980463,11.2091439,1329.8,1329.7,1.86580986]
[1673411980678,16.2290639,1329.8,1329.7,1.86580986]
[1673411989830,1.1232239,1329.9,1329.8,1.92404426]
[1673411990071,1.1232239,1329.9,1329.8,7.58751476]
[1673411990268,2.80907389,1330.0,1329.8,31.33659177]
[1673411990435,2.80907389,1330.0,1329.8,32.2694744]
[1673411990649,1.1232239,1330.0,1329.8,21.95086191]
[1673411990861,1.1232239,1330.0,1329.8,14.43094191]
[1673411991072,1.1232239,1330.0,1329.9,1.86554699]
[1673411991509,1.1232239,1330.0,1329.8,14.43094191]
[1673411993324,1.1892239,1330.1,1329.9,6.78648626]
[1673411993475,2.80907389,1330.1,1329.9,11.38273064]
[1673411994118,1.1232239,1330.1,1329.9,11.38273064]
[1673411994374,1.1232239,1330.1,1329.9,18.90209064]
[1673411994551,1.1232239,1330.1,1329.9,11.38273064]
[1673411995194,23.13107389,1330.2,1329.9,12.50604765]
[1673411996805,23.13107389,1330.2,1329.9,11.40060308]
[1673411997433,30.64897389,1330.2,1329.9,3.88153308]
[1673411997661,30.64897389,1330.2,1329.9,3.81553308]
[1673412000366,21.4452239,1330.2,1329.9,11.33467308]
[1673412000586,21.4452239,1330.2,1329.9,11.40067308]
[1673412001210,28.9630539,1330.2,1329.9,3.88153308]
[1673412001374,28.9630539,1330.2,1329.9,3.81553308]
[1673412002861,36.4808839,1330.2,1329.9,3.81553308]
[1673412006103,28.9630539,1330.2,1329.9,3.81553308]
[1673412007256,27.83983,1330.2,1329.9,3.81553308]
[1673412008251,28.9630539,1330.2,1329.9,3.81553308]
[1673412011046,45.68456389,1330.2,1329.9,3.81553308]
[1673412011259,43.9987139,1330.2,1329.9,3.81553308]
[1673412011829,45.68456389,1330.2,1329.9,3.81553308]
[1673412013937,45.68456389,1330.2,1329.9,3.81199278]
[1673412014862,45.68422389,1330.2,1329.9,3.81199278]
[1673412015665,43.9983739,1330.2,1329.9,3.81199278]
[1673412015928,42.87515,1330.2,1329.9,3.81199278]
[1673412016359,43.9983739,1330.2,1329.9,3.81199278]
[1673412017503,43.9983739,1330.2,1329.9,4.31212376]
[1673412017504,35.35732,1330.2,1329.9,4.31212376]
[1673412018837,36.4805439,1330.2,1329.9,4.31212376]
[1673412019189,35.35732,1330.2,1329.9,4.31212376]
[1673412019772,36.4805439,1330.2,1329.9,4.31212376]
[1673412020919,35.35732,1330.2,1329.9,4.31212376]
[1673412022549,36.4805439,1330.2,1329.9,4.31212376]
[1673412022711,35.35732,1330.2,1329.9,4.31212376]
[1673412023342,35.35732,1330.2,1329.9,5.43544077]
[1673412023582,35.35732,1330.2,1329.9,5.50144077]
[1673412023797,35.35732,1330.2,1329.9,4.37812376]
[1673412023798,36.4805439,1330.2,1329.9,4.37812376]
[1673412023990,36.4805439,1330.2,1329.9,4.31212376]
[1673412024225,35.35732,1330.2,1329.9,4.31212376]
[1673412024599,36.4805439,1330.2,1329.9,5.43544077]
[1673412024809,36.4805439,1330.2,1329.9,5.50144077]
[1673412025544,36.4805439,1330.2,1330.0,0.48278764]
[1673412026716,45.68422389,1330.2,1330.0,0.48278764]
[1673412026974,45.7050294,1330.2,1330.0,0.48278764]
[1673412027803,44.01917941,1330.2,1330.0,0.48278764]
[1673412028652,45.7050294,1330.2,1330.0,0.48278764]
[1673412031217,38.16639389,1330.2,1330.0,2.3481096]
[1673412031427,38.16639389,1330.2,1330.0,0.48278764]
[1673412032538,1.1232239,1330.1,1330.0,0.48278764]
[1673412032727,1.1232239,1330.1,1330.0,2.34812388]
[1673412033202,38.16639389,1330.2,1330.0,2.34812388]
[1673412033386,38.16639389,1330.2,1330.1,1.12322389]
[1673412033731,16.78716999,1330.2,1330.1,1.12322389]
[1673412033945,17.91260104,1330.2,1330.1,1.12322389]
[1673412034305,16.78716999,1330.2,1330.1,1.12322389]
[1673412034549,17.91259737,1330.2,1330.1,1.12322389]
[1673412035200,17.91259737,1330.2,1330.1,1.11977982]
[1673412036000,10.39493737,1330.2,1330.1,1.11977982]
[1673412036221,2.87727737,1330.2,1330.1,2.9850423]
[1673412036544,1.12542738,1330.2,1330.1,2.9850423]
[1673412037509,2.81127737,1330.2,1330.1,1.11977982]
[1673412038038,1.12542738,1330.2,1330.1,2.98505186]
[1673412038775,3.44117737,1330.3,1330.1,4.10836887]
[1673412038989,1.12542738,1330.2,1330.1,1.11977982]
[1673412039304,3.37517737,1330.3,1330.1,2.98496869]
[1673412039467,3.37517737,1330.3,1330.1,1.11977982]
[1673412039684,1.12542738,1330.2,1330.1,1.11977982]
[1673412039910,1.12542738,1330.2,1330.1,2.98496859]
[1673412040456,3.37517737,1330.3,1330.1,2.98496859]
[1673412040609,3.37517737,1330.3,1330.1,1.11977982]
[1673412040818,10.89229737,1330.3,1330.1,1.11977982]
[1673412041093,10.95829737,1330.3,1330.1,1.11977982]
[1673412042836,3.44117737,1330.3,1330.1,1.11977982]
[1673412043046,3.37517737,1330.3,1330.1,1.11977982]
[1673412043468,10.89236737,1330.3,1330.1,1.11977982]
[1673412043657,10.95836737,1330.3,1330.1,1.11977982]
[1673412044440,1.12542738,1330.2,1330.1,1.11977982]
[1673412044600,1.12542738,1330.2,1330.1,2.98498625]
[1673412044813,10.95836737,1330.3,1330.1,2.98498625]
[1673412045023,3.44117737,1330.3,1330.1,1.11977982]
[1673412045229,1.12542738,1330.2,1330.1,1.11977982]
[1673412045485,3.37517737,1330.3,1330.1,2.98499176]
[1673412045701,2.81127737,1330.3,1330.1,1.11977982]
[1673412046444,10.32842737,1330.3,1330.1,1.11977982]
[1673412046608,10.39442737,1330.3,1330.1,1.11977982]
[1673412048801,1.19142738,1330.3,1330.1,1.11977982]
[1673412049049,1.12542738,1330.3,1330.1,8.63787982]
[1673412049312,1.12542738,1330.3,1330.1,8.70387982]
[1673412049468,1.12542738,1330.3,1330.1,1.18577982]
[1673412049686,1.12542738,1330.3,1330.1,1.11977982]
[1673412050439,1.12542738,1330.3,1330.1,8.63798982]
[1673412050593,1.12542738,1330.3,1330.1,8.70398982]
[1673412050807,1.12542738,1330.3,1330.1,1.18577982]
[1673412051012,1.12742738,1330.3,1330.1,1.11977982]
[1673412051258,1.12542738,1330.3,1330.1,1.11977982]
[1673412051802,2.81127737,1330.3,1330.1,1.11977982]
[1673412052425,2.81127737,1330.3,1330.1,8.63799982]
[1673412052590,1.12542738,1330.3,1330.1,8.70399982]
[1673412053587,21.47381287,1330.4,1330.3,1.12542738]
[1673412053751,1.23141287,1330.4,1330.3,1.12542738]
[1673412053961,1.16541287,1330.4,1330.3,1.12542738]
[1673412054740,2.84663345,1330.4,1330.3,1.12542738]
[1673412054918,1.16514717,1330.4,1330.3,1.12542738]
[1673412055338,1.16514717,1330.4,1330.3,1.12290996]
[1673412057473,0.03998549,1330.4,1330.3,1.12290996]
[1673412057649,1.16514717,1330.4,1330.3,1.12290996]
[1673412058528,1.16514717,1330.4,1330.3,4.9205706]
[1673412059076,0.03998549,1330.4,1330.3,4.9205706]
[1673412060398,1.16514717,1330.4,1330.3,4.9205706]
[1673412062508,0.03998549,1330.4,1330.3,4.9205706]
[1673412071693,0.03998549,1330.4,1330.3,6.78542347]
[1673412071868,0.03998549,1330.4,1330.3,6.85142523]
[1673412072074,0.03998549,1330.4,1330.3,4.9865706]
[1673412072333,0.03998549,1330.4,1330.3,4.9205706]
[1673412072543,0.03998549,1330.4,1330.3,6.785408]
[1673412072698,0.03998549,1330.4,1330.3,6.851408]
[1673412073800,1e-08,1330.4,1330.3,6.851408]
[1673412081630,1e-08,1330.4,1330.3,7.97472501]
[1673412082621,1e-08,1330.4,1330.3,6.851408]
[1673412084413,1e-08,1330.4,1330.3,6.86761811]
[1673412089194,1e-08,1330.4,1330.3,15.50803512]
[1673412091856,1e-08,1330.4,1330.3,23.02513512]
[1673412092782,1e-08,1330.4,1330.3,21.90222516]
[1673412093748,11.9706897,1330.6,1330.4,0.00199999]
[1673412094074,11.9706897,1330.6,1330.4,5.66449803]
[1673412094283,11.9706897,1330.6,1330.4,3.86566063]
[1673412094499,11.9706897,1330.6,1330.4,3.79966063]
[1673412097306,10.28294717,1330.6,1330.4,3.79966063]
[1673412097703,11.9706897,1330.6,1330.4,3.79966063]
[1673412097958,10.28294717,1330.6,1330.4,3.79966063]
[1673412098167,11.9706897,1330.6,1330.4,3.79966063]
[1673412098755,10.28294717,1330.6,1330.4,3.79966063]
[1673412100178,10.28294717,1330.6,1330.4,4.92297764]
[1673412100605,10.28294717,1330.6,1330.4,3.79966063]
[1673412102705,10.28294717,1330.6,1330.4,4.92297764]
[1673412102959,10.28294717,1330.6,1330.5,1.86466281]
[1673412103352,1.23114717,1330.6,1330.4,4.98897764]
[1673412103558,1.16514717,1330.6,1330.4,4.92297764]
[1673412103767,1.16514717,1330.6,1330.5,1.86466923]
[1673412103982,1.16514717,1330.6,1330.4,4.98897764]
[1673412104187,1.16514717,1330.6,1330.4,4.92297764]
[1673412106804,1.16514717,1330.6,1330.5,1.86464875]
[1673412107474,1.16514717,1330.6,1330.4,4.98897764]
[1673412107688,1.16514717,1330.6,1330.4,4.92297764]
[1673412108290,1.16514717,1330.6,1330.5,1.86466745]
[1673412110519,1.16514717,1330.6,1330.4,4.98897764]
[1673412110690,1.16514717,1330.6,1330.5,1.86467767]
[1673412112231,1.16514717,1330.6,1330.4,4.98897764]
[1673412112370,1.16514717,1330.6,1330.5,1.86468363]
[1673412112582,1.16514717,1330.6,1330.4,4.98897764]
[1673412112792,1.16514717,1330.6,1330.4,4.92297764]
[1673412113698,1.16514717,1330.6,1330.5,1.86469127]
[1673412114497,1.16514717,1330.6,1330.4,4.98897764]
[1673412114683,1.16514717,1330.6,1330.4,4.92297764]
[1673412114894,1.16514717,1330.6,1330.5,1.86468589]
[1673412127096,2.8528897,1330.6,1330.5,1.86468589]
[1673412127462,1.16714717,1330.6,1330.5,1.86468589]
[1673412127674,1.16514717,1330.6,1330.5,2.98528011]
[1673412128044,1.16514717,1330.6,1330.5,1.8619631]
[1673412132663,1.16514717,1330.6,1330.5,2.35038303]
[1673412136625,1.16714717,1330.6,1330.5,2.35038303]
[1673412136922,1.16514717,1330.6,1330.5,2.35038303]
[1673412142549,1.16514717,1330.6,1330.5,6.14804367]
[1673412142767,1.16514717,1330.6,1330.5,6.21404367]
[1673412146179,2.8528897,1330.6,1330.5,6.21404367]
[1673412148050,1.16514717,1330.6,1330.5,6.21404367]
[1673412148268,1.16514717,1330.6,1330.5,7.33736068]
[1673412148481,1.16514717,1330.6,1330.5,6.21404367]
[1673412148800,1.16514717,1330.6,1330.5,7.33736068]
[1673412149011,1.16514717,1330.6,1330.5,6.21404367]
[1673412154456,1.16514717,1330.6,1330.5,7.33736068]
[1673412155002,12.10183911,1330.7,1330.6,1.12516168]
[1673412155215,2.92533911,1330.7,1330.6,2.98712478]
[1673412155440,2.85933911,1330.7,1330.6,2.98712478]
[1673412156432,1.17159658,1330.7,1330.6,2.98712478]
[1673412156645,2.85933911,1330.7,1330.6,2.98712478]
[1673412157069,1.17159658,1330.7,1330.6,2.98712478]
[1673412162626,1.17159658,1330.7,1330.6,14.30018542]
[1673412162831,0.0464349,1330.7,1330.6,15.48950243]
[1673412164357,0.0464349,1330.7,1330.6,14.36618542]
[1673412165037,0.0464349,1330.7,1330.6,15.48950243]
[1673412165252,0.0464349,1330.7,1330.6,14.36618542]
[1673412166354,0.0464349,1330.7,1330.6,21.88158542]
[1673412166938,0.0464349,1330.7,1330.6,29.39698542]
[1673412170092,0.0464349,1330.7,1330.6,30.52030243]
[1673412171074,0.0464349,1330.7,1330.6,29.39698542]
[1673412171505,0.0464349,1330.7,1330.6,30.52030243]
[1673412172760,0.0464349,1330.7,1330.6,33.31776058]
[1673412174527,0.0464349,1330.7,1330.6,32.19444357]
[1673412174707,0.0464349,1330.7,1330.6,33.31776058]
[1673412174920,0.04128445,1330.8,1330.6,33.31776058]
[1673412175188,0.04128445,1330.8,1330.7,18.82734064]
[1673412175400,0.04128445,1330.8,1330.7,18.89334064]
[1673412175659,0.04128445,1330.8,1330.7,20.75766859]
[1673412175872,0.04128445,1330.8,1330.7,18.89334064]
[1673412176088,0.04128445,1330.8,1330.7,28.27248449]
[1673412176816,0.04128445,1330.8,1330.7,29.3958015]
[1673412179423,0.04128445,1330.8,1330.7,28.27248449]
[1673412180355,0.04128445,1330.8,1330.7,29.3958015]
[1673412181136,0.04128445,1330.8,1330.7,28.27248449]
[1673412183277,0.04128445,1330.8,1330.7,33.98503878]
[1673412183598,0.04128445,1330.8,1330.7,32.19325965]
[1673412183800,0.04128445,1330.8,1330.7,33.98503878]
[1673412184014,0.04128445,1330.8,1330.7,36.78249693]
[1673412184678,4.45e-06,1330.8,1330.7,39.0332074]
[1673412184908,0.07092472,1331.0,1330.9,22.54113]
[1673412185084,0.07092472,1331.0,1330.9,41.4958382]
[1673412185294,0.07092472,1331.0,1330.9,45.978991]
[1673412185527,0.07092472,1331.0,1330.9,47.85519457]
[1673412185735,0.07092472,1331.0,1330.9,12.64920275]
[1673412185944,0.07092472,1331.0,1330.9,24.8791646]
[1673412186172,0.07092472,1331.0,1330.9,12.64920275]
[1673412186339,0.07092472,1331.0,1330.9,9.8517446]
[1673412186537,0.07092472,1331.0,1330.9,11.52542264]
[1673412187435,0.07092472,1331.0,1330.9,9.59387645]
[1673412187596,0.07092472,1331.0,1330.9,9.59587645]
[1673412188032,0.07092472,1331.0,1330.9,6.7984183]
[1673412188262,0.07092472,1331.0,1330.9,9.59587645]
[1673412188431,0.07092472,1331.0,1330.9,6.83003371]
[1673412188642,0.07092472,1331.0,1330.9,9.62749186]
[1673412188898,0.07092472,1331.0,1330.9,24.65491186]
[1673412190479,0.07092472,1331.0,1330.9,21.85745371]
[1673412191379,0.07092472,1331.0,1330.9,14.34374371]
[1673412191593,0.07092472,1331.0,1330.9,21.85745371]
[1673412191810,0.07092472,1331.0,1330.9,14.34374371]
[1673412192019,0.07092472,1331.0,1330.9,29.37116371]
[1673412192328,0.07092472,1331.0,1330.9,36.75184462]
[1673412192947,0.07092472,1331.0,1330.9,37.87562473]
[1673412194471,0.07092472,1331.0,1330.9,39.56462473]
[1673412194843,1e-08,1331.2,1331.0,2.5]
[1673412195053,1e-08,1331.2,1331.1,18.82282064]
[1673412195327,1e-08,1331.2,1331.1,18.88882064]
[1673412198655,1e-08,1331.2,1331.1,26.40140064]
[1673412199937,1e-08,1331.2,1331.1,30.9863455]
[1673412200145,1e-08,1331.2,1331.1,55.9863455]
[1673412201917,1e-08,1331.2,1331.1,57.6833455]
[1673412202327,1e-08,1331.2,1331.1,49.6833455]
[1673412202520,1e-08,1331.2,1331.1,57.6833455]